bitfinex/quotes_BTCUSD_20220109
["timestamp","ask_amount","ask_price","bid_price","bid_amount"]
[1641759048058,0.1003,42631.0,42629.0,0.383722]
[1641759048654,0.1003,42631.0,42629.0,0.385722]
[1641759049057,0.1003,42631.0,42629.0,0.444352]
[1641759049258,1.5692612,42630.0,42629.0,0.002]
[1641759049458,1.583722,42630.0,42629.0,0.002]
[1641759049659,1.683722,42630.0,42629.0,0.002]
[1641759049962,1.683722,42630.0,42616.0,0.00123605]
[1641759050159,0.21104915,42626.0,42622.0,0.058647]
[1641759050597,0.05864665,42629.0,42620.0,0.27875001]
[1641759050798,1.155,42630.0,42620.0,0.27875001]
[1641759051197,1.155,42630.0,42620.0,0.38739901]
[1641759051398,1.155,42630.0,42620.0,0.32875001]
[1641759051399,0.00015167,42626.0,42620.0,0.32875001]
[1641759051998,0.34799021,42626.0,42620.0,0.32875001]
[1641759052198,0.34799021,42626.0,42617.0,0.117293]
[1641759052199,0.34727289,42626.0,42617.0,0.117293]
[1641759052603,0.00015167,42625.0,42620.0,0.01]
[1641759053198,0.00015167,42625.0,42621.0,0.33105152]
[1641759053401,0.00015167,42625.0,42622.0,0.058645]
[1641759054243,0.00015167,42625.0,42623.0,0.383722]
[1641759054444,0.00015167,42625.0,42623.0,0.433722]
[1641759054646,0.004,42625.0,42623.0,0.433722]
[1641759055042,0.004,42625.0,42623.0,0.383722]
[1641759055248,1.004,42625.0,42622.0,0.024]
[1641759055643,0.383722,42624.0,42622.0,0.024]
[1641759055846,1.05,42625.0,42617.0,0.058652]
[1641759056245,1.05,42625.0,42619.0,0.27786199]
[1641759056246,0.20354723,42623.0,42619.0,0.27786199]
[1641759056645,1.054,42625.0,42620.0,0.44876804]
[1641759057145,1.054,42625.0,42619.0,0.27786199]
[1641759057851,1.05,42625.0,42619.0,0.33651099]
[1641759058590,1.058,42625.0,42619.0,0.33651099]
[1641759058791,0.00015173,42623.0,42620.0,0.39184793]
[1641759059591,0.00015173,42624.0,42620.0,0.39184793]
[1641759059792,0.00015173,42624.0,42622.0,0.058646]
[1641759060594,0.00715173,42624.0,42622.0,0.058646]
[1641759060794,0.007,42624.0,42622.0,0.058646]
[1641759060993,0.007,42624.0,42619.0,0.27786199]
[1641759061845,1.00015173,42625.0,42618.0,0.058652]
[1641759062143,1.05015173,42625.0,42612.0,0.222924]
[1641759062344,1.05015173,42625.0,42612.0,0.272924]
[1641759062544,1.05715173,42625.0,42612.0,0.222924]
[1641759062843,0.21694088,42622.0,42616.0,0.117297]
[1641759063245,0.21694088,42622.0,42618.0,0.058651]
[1641759064044,0.00015173,42621.0,42618.0,0.058651]
[1641759064644,0.00315173,42621.0,42612.0,0.164307]
[1641759065044,0.00315173,42621.0,42610.0,0.05993787]
[1641759065045,0.05866252,42617.0,42610.0,0.05993787]
[1641759065246,0.00315173,42621.0,42607.0,0.00121839]
[1641759065247,0.003,42621.0,42607.0,0.00121839]
[1641759065702,0.23819735,42621.0,42613.0,0.117305]
[1641759065899,0.23519735,42621.0,42613.0,0.117305]
[1641759066302,1.15,42618.0,42607.0,0.00121839]
[1641759066501,1.15,42618.0,42598.0,0.00124634]
[1641759066502,0.00124472,42615.0,42598.0,0.00124634]
[1641759066699,0.00124266,42609.0,42592.0,0.0002059]
[1641759066901,0.20123472,42601.0,42594.0,0.117354]
[1641759067101,0.25991934,42601.0,42595.0,0.383722]
[1641759067298,0.20123472,42601.0,42595.0,0.71274032]
[1641759067499,0.25123472,42601.0,42595.0,0.71274032]
[1641759067698,0.05,42601.0,42595.0,0.32901832]
[1641759067901,0.0012584,42605.0,42596.0,0.383722]
[1641759068099,0.0012584,42605.0,42595.0,0.32901832]
[1641759068700,0.0122584,42605.0,42595.0,0.32901832]
[1641759068902,0.0122584,42605.0,42599.0,0.058676]
[1641759069752,0.0122584,42605.0,42595.0,0.32901832]
[1641759069951,0.0012584,42605.0,42595.0,0.32901832]
[1641759070354,0.00082247,42602.0,42595.0,0.32901832]
[1641759071653,0.00082247,42602.0,42595.0,0.38769932]
[1641759071853,0.26742052,42599.0,42595.0,0.38769932]
[1641759072555,0.00018094,42601.0,42595.0,0.38769932]
[1641759072755,0.004,42599.0,42595.0,0.38769932]
[1641759073196,0.004,42599.0,42596.0,0.383722]
[1641759073993,0.00018094,42601.0,42596.0,0.4424]
[1641759074792,0.00118094,42601.0,42596.0,0.4424]
[1641759074993,0.00118094,42601.0,42596.0,0.383722]
[1641759075193,0.00118094,42601.0,42595.0,0.32901832]
[1641759075993,0.00018094,42601.0,42595.0,0.32901832]
[1641759076594,0.00418094,42601.0,42595.0,0.32901832]
[1641759077243,0.00018082,42600.0,42595.0,0.32901832]
[1641759077943,0.00018082,42600.0,42596.0,0.383722]
[1641759078343,0.00018082,42600.0,42595.0,0.38769832]
[1641759078644,0.00418082,42600.0,42595.0,0.38769832]
[1641759079143,0.00418082,42600.0,42596.0,0.383722]
[1641759079445,0.00418082,42600.0,42598.0,0.058675]
[1641759079645,0.00418082,42600.0,42599.0,0.383722]
[1641759079844,0.00018082,42600.0,42599.0,0.383722]
[1641759080247,0.00018082,42600.0,42598.0,0.058675]
[1641759080501,0.00018082,42600.0,42596.0,0.40912796]
[1641759080703,0.00418082,42600.0,42599.0,1.033722]
[1641759080903,0.00418082,42600.0,42599.0,0.433722]
[1641759081103,0.00418082,42600.0,42599.0,0.78268487]
[1641759081305,0.00418082,42600.0,42599.0,1.01403036]
[1641759081606,0.00418082,42600.0,42599.0,1.45111592]
[1641759081804,1.00418082,42600.0,42599.0,1.45111592]
[1641759082002,1.00418082,42600.0,42599.0,1.50978392]
[1641759082003,1.00018082,42600.0,42599.0,1.50978392]
[1641759082204,1.00018082,42600.0,42599.0,1.27965745]
[1641759082604,1.00018082,42600.0,42599.0,1.28865745]
[1641759084247,1.00018082,42600.0,42599.0,1.22965745]
[1641759084443,1.00018082,42600.0,42599.0,1.22591582]
[1641759084644,1.00018082,42600.0,42599.0,1.23538896]
[1641759084844,1.00018082,42600.0,42599.0,0.93969458]
[1641759085247,1.00018082,42600.0,42599.0,1.28370573]
[1641759085444,1.00018082,42600.0,42599.0,0.93969458]
[1641759085645,1.00018082,42600.0,42599.0,1.28441081]
[1641759086045,1.00018082,42600.0,42599.0,1.27541081]
[1641759086645,1.00018082,42600.0,42599.0,1.28541081]
[1641759087248,0.33429665,42600.0,42599.0,2.68541081]
[1641759087449,0.9608,42616.0,42608.0,0.00122262]
[1641759087646,1.4346,42620.0,42609.0,0.047]
[1641759087846,0.2991,42620.0,42609.0,0.047]
[1641759088103,0.26579024,42619.0,42610.0,0.49318703]
[1641759088303,0.26579024,42619.0,42612.0,0.34414638]
[1641759088603,0.26579024,42619.0,42610.0,0.23592259]
[1641759088604,0.29879024,42619.0,42611.0,0.117304]
[1641759088808,0.29879024,42619.0,42610.0,0.004]
[1641759089003,0.00128326,42617.0,42610.0,0.004]
[1641759089406,0.21533818,42612.0,42610.0,0.004]
[1641759089603,0.45485168,42612.0,42610.0,0.004]
[1641759090003,0.60485168,42612.0,42605.0,0.058667]
[1641759090206,0.36533818,42612.0,42605.0,0.058667]
[1641759090604,0.26533818,42612.0,42605.0,0.062667]
[1641759091206,0.50112176,42612.0,42605.0,0.062667]
[1641759091845,0.45112176,42612.0,42605.0,0.058667]
[1641759092647,0.45112176,42612.0,42605.0,0.063667]
[1641759093050,0.05866905,42611.0,42605.0,0.005]
[1641759093250,0.3630946,42610.0,42605.0,0.005]
[1641759093852,0.3630946,42610.0,42600.0,0.0012062]
[1641759094151,0.3630946,42610.0,42601.0,0.058672]
[1641759094449,0.3630946,42610.0,42599.0,0.167339]
[1641759095057,0.05867219,42609.0,42599.0,0.167339]
[1641759096007,0.05867219,42609.0,42601.0,0.058672]
[1641759096610,0.05867219,42609.0,42601.0,0.059672]
[1641759097412,0.3630946,42610.0,42601.0,0.059672]
[1641759097613,0.4130946,42610.0,42601.0,0.059672]
[1641759097809,0.4130946,42610.0,42601.0,0.058672]
[1641759098211,0.00127407,42611.0,42601.0,0.058672]
[1641759098612,0.00127407,42611.0,42601.0,0.062672]
[1641759099647,0.38845695,42611.0,42601.0,0.062672]
[1641759099850,0.29244568,42605.0,42601.0,0.058672]
[1641759100049,0.35339561,42604.0,42599.0,0.117339]
[1641759100247,0.29244568,42605.0,42599.0,0.117339]
[1641759100650,0.24646619,42602.0,42599.0,0.123339]
[1641759101849,0.24646619,42602.0,42599.0,0.117339]
[1641759102051,0.00017491,42601.0,42599.0,0.117339]
[1641759102653,0.00017491,42601.0,42599.0,0.124339]
[1641759103100,0.00017491,42601.0,42599.0,0.007]
[1641759103899,0.00017491,42601.0,42596.0,0.05989799]
[1641759104100,0.00017491,42601.0,42596.0,0.058681]
[1641759104101,0.30513985,42598.0,42596.0,0.058681]
[1641759104702,0.30513985,42598.0,42596.0,0.067681]
[1641759104902,1.10344718,42597.0,42596.0,0.009]
[1641759105109,1.48716918,42597.0,42596.0,0.009]
[1641759105306,1.58716918,42597.0,42596.0,0.009]
[1641759106004,1.58716918,42597.0,42592.0,0.00020587]
[1641759106204,0.99924882,42593.0,42592.0,0.00020587]
[1641759106407,1.40559348,42593.0,42592.0,0.00020587]
[1641759106605,1.40559348,42593.0,42592.0,0.00040869]
[1641759106851,1.44459348,42593.0,42592.0,0.00020282]
[1641759107447,0.69459348,42593.0,42592.0,0.00020282]
[1641759107652,0.69459348,42593.0,42590.0,0.00020282]
[1641759108048,0.65559348,42593.0,42590.0,0.00020282]
[1641759108848,0.66559348,42593.0,42590.0,0.003]
[1641759109248,0.23515818,42591.0,42590.0,0.003]
[1641759109449,0.66559348,42593.0,42590.0,0.003]
[1641759109848,0.66559348,42593.0,42589.0,0.0004089]
[1641759110050,0.65559348,42593.0,42589.0,0.00020608]
[1641759110256,0.40715734,42593.0,42589.0,0.00020608]
[1641759110502,0.35145144,42593.0,42589.0,0.00020608]
[1641759110698,0.38745144,42593.0,42589.0,0.00320608]
[1641759110900,0.38745144,42593.0,42589.0,0.0034121]
[1641759111104,0.38745144,42593.0,42589.0,0.00320602]
[1641759111302,0.6309153,42593.0,42589.0,0.00320602]
[1641759111900,0.5949153,42593.0,42589.0,0.00020602]
[1641759112104,0.00017382,42592.0,42589.0,0.05889802]
[1641759112806,0.00917382,42592.0,42589.0,0.06489802]
[1641759113001,0.00917382,42592.0,42591.0,0.21010942]
[1641759113202,0.00917382,42592.0,42591.0,1.19383142]
[1641759113402,0.00917382,42592.0,42591.0,0.983722]
[1641759113602,0.00917382,42592.0,42591.0,0.383722]
[1641759113603,0.00854838,42592.0,42591.0,0.383722]
[1641759114001,0.00081268,42593.0,42591.0,0.383722]
[1641759114245,0.00081268,42593.0,42590.0,0.05]
[1641759114449,0.00081268,42593.0,42591.0,0.058683]
[1641759115452,0.00081268,42593.0,42592.0,1.1983442]
[1641759115650,0.00081268,42593.0,42592.0,1.6994192]
[1641759115850,0.00128892,42606.0,42593.0,0.8]
[1641759116049,0.00128892,42606.0,42599.0,0.058676]
[1641759116450,0.19199315,42605.0,42599.0,0.058676]
[1641759116649,0.24199315,42605.0,42599.0,0.058676]
[1641759117249,0.24199315,42605.0,42599.0,0.40584349]
[1641759117450,0.05,42605.0,42599.0,0.40584349]
[1641759117650,0.9348,42609.0,42600.0,0.35070229]
[1641759117851,1.5179,42610.0,42604.0,0.058666]
[1641759118104,0.00126222,42614.0,42604.0,0.058666]
[1641759118498,0.52346612,42611.0,42604.0,0.058666]
[1641759119302,0.00126222,42614.0,42604.0,0.058666]
[1641759119701,0.54635318,42612.0,42604.0,0.058666]
[1641759120403,0.54635318,42612.0,42607.0,0.41828369]
[1641759120606,0.54635318,42612.0,42609.0,0.058663]
[1641759121003,0.54135318,42612.0,42609.0,0.058663]
[1641759121202,0.88941764,42612.0,42604.0,0.004]
[1641759121404,0.88939602,42612.0,42604.0,0.004]
[1641759121849,0.21342259,42606.0,42604.0,0.004]
[1641759122048,0.21342259,42606.0,42603.0,0.047]
[1641759122250,0.46626214,42606.0,42601.0,0.058675]
[1641759122651,0.46626214,42606.0,42594.0,0.33127327]
[1641759122652,0.35069552,42605.0,42593.0,0.047]
[1641759122850,0.35069552,42605.0,42601.0,0.007]
[1641759123261,0.05868146,42604.0,42601.0,0.007]
[1641759124651,0.35069552,42605.0,42597.0,0.05868]
[1641759124853,0.35069552,42605.0,42601.0,0.003]
[1641759126096,0.46626214,42606.0,42601.0,0.058675]
[1641759126499,0.00125762,42608.0,42601.0,0.058675]
[1641759126700,0.00125762,42608.0,42601.0,0.059675]
[1641759126899,1.746542,42619.0,42601.0,0.059675]
[1641759127199,0.00028742,42604.0,42601.0,0.059675]
[1641759127398,0.00028742,42604.0,42602.0,0.383722]
[1641759127601,0.00028742,42604.0,42603.0,0.76815127]
[1641759127799,0.00028742,42604.0,42603.0,0.86920627]
[1641759128698,0.00028742,42604.0,42603.0,0.509055]
[1641759130348,0.00028742,42604.0,42603.0,0.504055]
[1641759130551,0.00028742,42604.0,42603.0,0.496055]
[1641759130747,0.00028742,42604.0,42603.0,0.505055]
[1641759131348,0.00028742,42604.0,42603.0,0.83605293]
[1641759132050,0.00028742,42604.0,42603.0,0.496055]
[1641759132252,0.19494858,42611.0,42603.0,0.496055]
[1641759132451,0.19494858,42611.0,42604.0,0.05]
[1641759132651,0.19494858,42611.0,42607.0,0.058664]
[1641759133696,0.00028742,42611.0,42607.0,0.058664]
[1641759134893,0.00028742,42611.0,42607.0,0.062664]
[1641759135794,0.35542357,42611.0,42607.0,0.004]
[1641759135994,0.383828,42610.0,42600.0,0.117339]
[1641759136199,0.35542357,42611.0,42600.0,0.117339]
[1641759136595,0.45542357,42611.0,42597.0,0.047]
[1641759136845,0.29713679,42602.0,42597.0,0.047]
[1641759137245,0.64186291,42602.0,42593.0,0.22780181]
[1641759137447,0.29713679,42602.0,42594.0,0.383828]
[1641759137645,0.22191581,42603.0,42594.0,0.383828]
[1641759137848,0.22191581,42603.0,42595.0,0.05]
[1641759138147,0.22191581,42603.0,42596.0,0.501179]
[1641759138748,0.22191581,42603.0,42596.0,0.504179]
[1641759139947,0.22191581,42603.0,42596.0,0.501179]
[1641759140595,0.22191581,42603.0,42596.0,0.496179]
[1641759140798,0.22191581,42603.0,42596.0,0.499179]
[1641759142097,0.00028717,42602.0,42596.0,0.496179]
[1641759142899,0.00028717,42602.0,42596.0,0.500179]
[1641759143801,0.00028717,42602.0,42597.0,0.33320993]
[1641759144004,0.00028717,42602.0,42598.0,0.383828]
[1641759144244,0.00028717,42602.0,42600.0,0.33388654]
[1641759144451,0.00028717,42602.0,42601.0,0.883863]
[1641759144646,0.44150326,42617.0,42602.0,0.8]
[1641759144847,0.22766531,42614.0,42608.0,0.058666]
[1641759145246,0.29166165,42614.0,42608.0,0.058666]
[1641759146346,0.48852638,42614.0,42606.0,0.058668]
[1641759147145,0.05894706,42613.0,42604.0,0.30825862]
[1641759147346,0.05894706,42613.0,42604.0,0.05]
[1641759147546,0.05894706,42613.0,42606.0,0.058669]
[1641759148804,0.05894706,42613.0,42603.0,0.117331]
[1641759149003,0.24832022,42607.0,42600.0,0.117342]
[1641759149905,0.21987068,42606.0,42600.0,0.117342]
[1641759150704,0.24832022,42607.0,42600.0,0.117342]
[1641759150906,0.24832022,42607.0,42600.0,0.120342]
[1641759152154,0.00027742,42606.0,42600.0,0.117342]
[1641759152948,0.00027742,42606.0,42600.0,0.120342]
[1641759154047,0.00027742,42606.0,42600.0,0.117342]
[1641759154851,0.00027742,42606.0,42600.0,0.122342]
[1641759156204,0.00027742,42606.0,42600.0,0.117342]
[1641759156805,0.00027742,42606.0,42600.0,0.122342]
[1641759157204,0.00027729,42605.0,42600.0,0.122342]
[1641759158002,0.00027729,42605.0,42601.0,0.383863]
[1641759158905,0.00027729,42605.0,42604.0,1.97565662]
[1641759159104,0.00027729,42605.0,42604.0,2.02683987]
[1641759159357,0.00027729,42605.0,42604.0,2.14415687]
[1641759160353,0.00027729,42605.0,42604.0,1.24415687]
[1641759161053,0.00027729,42605.0,42604.0,1.25415687]
[1641759162054,0.55638788,42614.0,42604.0,1.34415687]
[1641759162255,0.55638788,42614.0,42604.0,0.96032187]
[1641759162454,0.55638788,42614.0,42609.0,0.05866]
[1641759164100,0.31926949,42614.0,42609.0,0.05866]
[1641759164899,0.31926949,42614.0,42609.0,0.06366]
[1641759166101,0.31926949,42614.0,42609.0,0.05866]
[1641759166950,0.31926949,42614.0,42609.0,0.06266]
[1641759167348,0.00027831,42613.0,42609.0,0.06266]
[1641759167547,0.00027831,42613.0,42609.0,0.04306]
[1641759168147,0.00027831,42613.0,42609.0,0.03906]
[1641759168958,0.00027831,42613.0,42609.0,0.04506]
[1641759169553,0.00027831,42613.0,42610.0,0.001253]
[1641759169756,0.00027831,42613.0,42612.0,1.20987182]
[1641759170052,0.00015169,42619.0,42612.0,1.20987182]
[1641759170053,0.00015169,42619.0,42613.0,0.9]
[1641759170254,0.00015169,42619.0,42617.0,0.00121255]
[1641759170926,0.00015169,42619.0,42617.0,0.00721255]
[1641759171527,0.00015173,42620.0,42617.0,0.00721255]
[1641759171925,0.00015173,42620.0,42617.0,0.006]
[1641759172128,0.00026901,42618.0,42615.0,0.117278]
[1641759172337,0.00026901,42618.0,42616.0,0.117294]
[1641759172528,0.00026901,42618.0,42616.0,0.167294]
[1641759172929,0.00026901,42618.0,42616.0,0.175294]
[1641759174134,0.00026901,42618.0,42616.0,0.167294]
[1641759174955,0.00026901,42618.0,42616.0,0.173294]
[1641759175152,0.00026901,42618.0,42616.0,0.123294]
[1641759175355,0.57725853,42624.0,42617.0,0.4]
[1641759175553,0.62725853,42624.0,42616.0,0.123294]
[1641759175954,0.00015172,42619.0,42616.0,0.123294]
[1641759176153,0.00015172,42619.0,42616.0,0.117294]
[1641759176555,0.00015172,42619.0,42616.0,0.167294]
[1641759176755,0.00015172,42619.0,42616.0,0.117294]
[1641759176955,0.57725853,42624.0,42616.0,0.122294]
[1641759177155,0.00026004,42623.0,42616.0,0.122294]
[1641759177559,0.00026004,42623.0,42616.0,0.005]
[1641759177998,0.00026004,42623.0,42617.0,0.058652]
[1641759178199,0.4050266,42623.0,42617.0,0.058652]
[1641759178601,0.21971765,42617.0,42615.0,0.117278]
[1641759178800,0.00026004,42623.0,42610.0,0.117312]
[1641759179099,0.00015933,42622.0,42617.0,0.003]
[1641759179900,0.25113456,42621.0,42617.0,0.003]
[1641759180104,0.25113456,42621.0,42614.0,0.117302]
[1641759180299,0.00015932,42622.0,42614.0,0.167302]
[1641759180901,0.00015932,42622.0,42614.0,0.173302]
[1641759181100,0.00015932,42622.0,42617.0,0.058652]
[1641759181303,0.00015936,42621.0,42617.0,0.058652]
[1641759182257,0.00041914,42621.0,42617.0,0.058652]
[1641759182554,0.00041915,42621.0,42617.0,0.058652]
[1641759182959,0.00041915,42621.0,42617.0,0.064652]
[1641759183656,0.00041915,42621.0,42618.0,0.3919709]
[1641759183855,0.00041915,42621.0,42620.0,1.533863]
[1641759184054,0.00041915,42621.0,42620.0,1.64079403]
[1641759184255,0.00035915,42621.0,42620.0,1.64079403]
[1641759184557,0.00035915,42621.0,42620.0,2.06528379]
[1641759184957,0.0005102,42621.0,42620.0,2.07528379]
[1641759185608,0.00035083,42621.0,42620.0,2.07528379]
[1641759185803,0.00019978,42621.0,42620.0,2.07528379]
[1641759186205,0.00019978,42621.0,42620.0,2.06528379]
[1641759187008,0.00019978,42621.0,42620.0,2.07628379]
[1641759187206,0.00015114,42623.0,42621.0,1.15]
[1641759187406,0.00015114,42623.0,42622.0,1.93884113]
[1641759187606,0.00015114,42623.0,42622.0,2.40620089]
[1641759188406,0.0003,42631.0,42629.0,0.058627]
[1641759188607,0.0003,42631.0,42628.0,0.117254]
[1641759189007,0.0003,42631.0,42629.0,0.008]
[1641759190153,0.0003,42631.0,42628.0,0.117254]
[1641759190955,0.0003,42631.0,42628.0,0.125254]
[1641759191755,0.0003,42631.0,42629.0,0.383863]
[1641759192157,0.00025165,42630.0,42629.0,0.383863]
[1641759192558,0.00025165,42630.0,42629.0,0.77789929]
[1641759192756,0.00025165,42630.0,42629.0,0.83652529]
[1641759193010,0.00025165,42630.0,42629.0,0.84452529]
[1641759193404,0.00025165,42630.0,42629.0,1.39452529]
[1641759193606,0.00025165,42630.0,42629.0,1.85484394]
[1641759193806,0.00025165,42630.0,42629.0,1.75484394]
[1641759194206,0.00025165,42630.0,42629.0,1.74684394]
[1641759195008,0.00025165,42630.0,42629.0,1.75584394]
[1641759195206,0.00025165,42630.0,42629.0,0.451489]
[1641759195408,0.00025165,42630.0,42629.0,0.392863]
[1641759195606,0.00025165,42630.0,42629.0,0.009]
[1641759196207,0.00025165,42630.0,42622.0,0.3688403]
[1641759196408,0.00025165,42630.0,42623.0,0.383863]
[1641759196755,0.21306523,42630.0,42627.0,0.117263]
[1641759197255,0.21306523,42630.0,42628.0,0.383863]
[1641759197454,0.35770338,42629.0,42628.0,0.383863]
[1641759197661,0.344868,42629.0,42628.0,0.383863]
[1641759197855,0.00015112,42629.0,42628.0,0.383863]
[1641759198655,0.21306523,42630.0,42628.0,0.383863]
[1641759199056,0.21306523,42630.0,42628.0,0.388863]
[1641759199658,0.21306523,42630.0,42628.0,0.005]
[1641759200056,0.00025165,42630.0,42624.0,0.117271]
[1641759200703,0.01,42628.0,42624.0,0.117271]
[1641759200904,0.01,42628.0,42624.0,0.122271]
[1641759202104,0.01015112,42628.0,42624.0,0.117271]
[1641759202402,0.00025127,42627.0,42624.0,0.117271]
[1641759202805,0.00025127,42627.0,42625.0,0.383863]
[1641759203204,0.00025127,42627.0,42624.0,0.124271]
[1641759204005,0.00025127,42627.0,42624.0,0.38114559]
[1641759204250,0.00025127,42627.0,42625.0,0.383863]
[1641759204650,0.00025127,42627.0,42624.0,0.117271]
[1641759205151,0.00025127,42627.0,42625.0,0.006]
[1641759205752,1.00025127,42627.0,42626.0,1.192496]
[1641759206750,1.00025127,42627.0,42626.0,0.442496]
[1641759206949,1.00025127,42627.0,42626.0,0.065633]
[1641759208107,1.00025127,42627.0,42626.0,0.408633]
[1641759208906,1.00025127,42627.0,42626.0,0.063633]
[1641759210309,1.00025127,42627.0,42626.0,0.058633]
[1641759210911,1.00025127,42627.0,42626.0,0.017251]
[1641759212156,1.00025127,42627.0,42626.0,0.011251]
[1641759212954,1.00025127,42627.0,42626.0,0.016251]
[1641759214254,1.00025127,42627.0,42626.0,0.011251]
[1641759214954,1.00025127,42627.0,42626.0,0.016251]
[1641759216206,1.00025127,42627.0,42626.0,0.011251]
[1641759217009,1.00025127,42627.0,42626.0,0.018251]
[1641759218810,1.00025127,42627.0,42626.0,0.011251]
[1641759219113,1.00025127,42627.0,42626.0,0.017251]
[1641759220151,1.00025127,42627.0,42626.0,0.011251]
[1641759220954,1.00025127,42627.0,42626.0,0.016251]
[1641759222154,1.00025127,42627.0,42626.0,0.011251]
[1641759223006,1.00025127,42627.0,42626.0,0.017251]
[1641759224206,1.00025127,42627.0,42626.0,0.011251]
[1641759224608,1.00025127,42627.0,42626.0,0.005389]
[1641759225007,1.00025127,42627.0,42626.0,0.012389]
[1641759225607,1.32362763,42627.0,42626.0,0.012389]
[1641759226407,1.30862763,42627.0,42626.0,0.012389]
[1641759227062,1.30862763,42627.0,42626.0,0.019389]
[1641759227259,1.3088789,42627.0,42626.0,0.019389]
[1641759227861,0.98550254,42627.0,42626.0,0.019389]
[1641759228260,0.98550254,42627.0,42626.0,0.005389]
[1641759229061,0.98550254,42627.0,42626.0,0.011389]
[1641759230263,0.98550254,42627.0,42626.0,0.005389]
[1641759231110,0.98550254,42627.0,42626.0,0.011389]
[1641759232316,0.98550254,42627.0,42626.0,0.005389]
[1641759233009,0.98550254,42627.0,42626.0,0.011389]
[1641759234258,0.98550254,42627.0,42626.0,0.005389]
[1641759234964,0.98550254,42627.0,42626.0,0.011389]
[1641759236362,0.98550254,42627.0,42626.0,0.005389]
[1641759237060,0.98550254,42627.0,42626.0,0.010389]
[1641759238811,0.98550254,42627.0,42626.0,0.005389]
[1641759239011,0.98550254,42627.0,42626.0,0.011389]
[1641759240213,0.98550254,42627.0,42626.0,0.005389]
[1641759241113,0.98550254,42627.0,42626.0,0.013389]
[1641759242567,0.98550254,42627.0,42626.0,0.005389]
[1641759243164,0.98550254,42627.0,42626.0,0.013389]
[1641759244367,0.98550254,42627.0,42626.0,0.005389]
[1641759245170,0.98550254,42627.0,42626.0,0.013389]
[1641759246318,0.98550254,42627.0,42626.0,0.005389]
[1641759247211,0.98550254,42627.0,42626.0,0.013389]
[1641759248315,0.98550254,42627.0,42626.0,0.005389]
[1641759249114,0.98550254,42627.0,42626.0,0.013389]
[1641759249759,0.98550254,42627.0,42626.0,0.243389]
[1641759250363,0.98550254,42627.0,42626.0,0.235389]
[1641759251062,0.98550254,42627.0,42626.0,0.243389]
[1641759252063,0.98550254,42627.0,42626.0,0.238]
[1641759252064,1.8526459,42627.0,42626.0,0.238]
[1641759252464,1.8526459,42627.0,42626.0,0.23]
[1641759253115,1.8636459,42627.0,42626.0,0.236]
[1641759253712,1.8636459,42627.0,42626.0,0.2336114]
[1641759255119,1.8846459,42627.0,42626.0,0.2366114]
[1641759256118,1.9846459,42627.0,42626.0,0.2366114]
[1641759256318,1.9526459,42627.0,42626.0,0.2276114]
[1641759257063,1.9656459,42627.0,42626.0,0.2276114]
[1641759257664,2.51564589,42627.0,42626.0,0.2276114]
[1641759257865,2.4826059,42627.0,42626.0,0.2276114]
[1641759258066,0.00121265,42622.0,42618.0,0.00020581]
[1641759258267,1.54400708,42619.0,42618.0,0.00020581]
[1641759258465,1.97787008,42619.0,42618.0,0.00020581]
[1641759258665,2.57434784,42619.0,42618.0,0.00020581]
[1641759258866,2.94640638,42619.0,42618.0,0.00041161]
[1641759259066,2.95940638,42619.0,42618.0,0.0002058]
[1641759259265,2.96580992,42619.0,42618.0,0.0002058]
[1641759260065,2.96580992,42619.0,42616.0,0.0002058]
[1641759260269,0.00126769,42617.0,42616.0,0.0002058]
[1641759260516,1.95400482,42617.0,42616.0,0.0002058]
[1641759260721,2.10400482,42617.0,42616.0,0.0002058]
[1641759260921,2.15400482,42617.0,42616.0,0.0002058]
[1641759261117,2.16700482,42617.0,42614.0,0.00020581]
[1641759261320,0.00120851,42615.0,42614.0,0.00020581]
[1641759261518,2.13661042,42617.0,42614.0,0.00020581]
[1641759261718,1.533863,42615.0,42614.0,0.00020581]
[1641759262117,1.633863,42615.0,42614.0,0.00020581]
[1641759262320,1.633863,42615.0,42612.0,0.00020582]
[1641759262519,1.533863,42613.0,42612.0,0.00020582]
[1641759262918,1.924463,42613.0,42612.0,0.00020582]
[1641759263119,1.988463,42613.0,42612.0,0.00020582]
[1641759263319,1.98968996,42613.0,42612.0,0.00020582]
[1641759263524,0.53573613,42612.0,42610.0,0.00020582]
[1641759263818,1.91761348,42611.0,42610.0,0.00020582]
[1641759264019,2.06261348,42611.0,42610.0,0.00020582]
[1641759264262,2.11839359,42611.0,42610.0,0.00020582]
[1641759264463,2.11839359,42611.0,42609.0,0.00020583]
[1641759264664,1.93425699,42610.0,42609.0,0.00020583]
[1641759264864,2.00010617,42610.0,42609.0,0.00020583]
[1641759265164,2.10010617,42610.0,42609.0,0.00020583]
[1641759265566,2.10010617,42610.0,42607.0,0.00020583]
[1641759265764,2.52010617,42610.0,42607.0,0.00020583]
[1641759266764,2.52010617,42610.0,42606.0,0.00020583]
[1641759267164,0.00024,42609.0,42606.0,0.00020583]
[1641759267365,0.44249728,42608.0,42606.0,0.00020583]
[1641759267565,1.31786504,42607.0,42606.0,0.00020583]
[1641759267765,1.70167904,42607.0,42606.0,0.00020583]
[1641759268026,1.80167904,42607.0,42606.0,0.00020583]
[1641759268214,2.10947904,42607.0,42606.0,0.00020583]
[1641759268817,2.10947904,42607.0,42604.0,0.00020584]
[1641759269015,0.433814,42606.0,42604.0,0.00020584]
[1641759269215,0.8844631,42605.0,42604.0,0.00020584]
[1641759269414,1.2682771,42605.0,42604.0,0.00020584]
[1641759269616,1.3682771,42605.0,42604.0,0.00020584]
[1641759270017,0.8182771,42605.0,42603.0,0.00020584]
[1641759270217,0.383814,42604.0,42603.0,0.00020584]
[1641759270417,0.05,42604.0,42603.0,0.00020584]
[1641759270620,0.1,42604.0,42603.0,0.00020584]
[1641759270818,0.01696,42604.0,42603.0,0.00020584]
[1641759271020,0.01696,42604.0,42601.0,0.00020585]
[1641759271217,0.02396,42604.0,42601.0,0.00020585]
[1641759271866,0.02396,42604.0,42602.0,0.058672]
[1641759272065,0.02419937,42604.0,42602.0,0.058672]
[1641759272266,0.02419937,42604.0,42603.0,0.2364772]
[1641759272469,0.02419937,42604.0,42603.0,1.75280602]
[1641759272470,0.01719937,42604.0,42603.0,1.75280602]
[1641759272667,0.01719937,42604.0,42603.0,2.23662002]
[1641759272864,0.01719937,42604.0,42603.0,2.18362002]
[1641759274069,0.01719937,42604.0,42603.0,2.34227666]